[Event "Titled Tuesday Blitz June 14 Early 2022"]
[White "Andreikin, Dmitry"]
[Black "Paravyan, David"]
[WhiteFideId "4158814"]
[BlackFideId "4194985"]
[WhiteElo "2736"]
[BlackElo "2569"]
[Result "1/2-1/2"]
[Round "09"]
[TimeControl "180+1"]
[Date "2022.06.14"]
[WhiteClock "0:00:08"]
[BlackClock "0:00:02"]

1. d4 {[%clk 0:02:58]}  Nf6 {[%clk 0:02:59]} 2. Bg5 {[%clk 0:02:57]}  g6 {[%clk 0:02:58]} 3. Nd2 {[%clk 0:02:56]}  Bg7 {[%clk 0:02:57]} 4. e3 {[%clk 0:02:57]}  h6 {[%clk 0:02:56]} 5. Bh4 {[%clk 0:02:56]}  d6 {[%clk 0:02:56]} 6. c3 {[%clk 0:02:55]}  Nc6 {[%clk 0:02:56]} 7. Bb5 {[%clk 0:02:53]}  Bd7 {[%clk 0:02:55]} 8. Ne2 {[%clk 0:02:51]}  O-O {[%clk 0:02:55]} 9. O-O {[%clk 0:02:50]}  a6 {[%clk 0:02:55]} 10. Ba4 {[%clk 0:02:46]}  Qe8 {[%clk 0:02:55]} 11. Bc2 {[%clk 0:02:45]}  e5 {[%clk 0:02:53]} 12. b4 {[%clk 0:02:41]}  Nd5 {[%clk 0:02:51]} 13. Bb3 {[%clk 0:02:39]}  Nb6 {[%clk 0:02:39]} 14. a4 {[%clk 0:02:37]}  a5 {[%clk 0:02:27]} 15. b5 {[%clk 0:02:36]}  Ne7 {[%clk 0:02:27]} 16. Ne4 {[%clk 0:02:23]}  g5 {[%clk 0:02:28]} 17. Bg3 {[%clk 0:02:19]}  Nf5 {[%clk 0:02:28]} 18. c4 {[%clk 0:02:08]}  exd4 {[%clk 0:02:25]} 19. Qd3 {[%clk 0:02:04]}  dxe3 {[%clk 0:02:23]} 20. fxe3 {[%clk 0:02:04]}  Qe7 {[%clk 0:02:13]} 21. Nd4 {[%clk 0:01:52]}  Rae8 {[%clk 0:02:14]} 22. Bc2 {[%clk 0:01:47]}  Qxe4 {[%clk 0:02:10]} 23. Qxe4 {[%clk 0:01:42]}  Rxe4 {[%clk 0:02:10]} 24. Bxe4 {[%clk 0:01:38]}  Nxe3 {[%clk 0:02:06]} 25. Nb3 {[%clk 0:01:20]}  Nxf1 {[%clk 0:01:57]} 26. Rxf1 {[%clk 0:01:19]}  Nxa4 {[%clk 0:01:57]} 27. Bxb7 {[%clk 0:01:08]}  Bc3 {[%clk 0:01:51]} 28. Bf2 {[%clk 0:00:49]}  Be6 {[%clk 0:01:49]} 29. Rc1 {[%clk 0:00:47]}  Bxc4 {[%clk 0:01:40]} 30. Nxa5 {[%clk 0:00:46]}  Bxb5 {[%clk 0:01:40]} 31. Nc6 {[%clk 0:00:45]}  Re8 {[%clk 0:01:33]} 32. h4 {[%clk 0:00:43]}  gxh4 {[%clk 0:01:26]} 33. Nd4 {[%clk 0:00:38]}  Bd7 {[%clk 0:01:22]} 34. Nf3 {[%clk 0:00:32]}  h3 {[%clk 0:01:20]} 35. gxh3 {[%clk 0:00:32]}  Ba5 {[%clk 0:01:10]} 36. Kh1 {[%clk 0:00:26]}  Nc5 {[%clk 0:01:09]} 37. Bd5 {[%clk 0:00:18]}  Kf8 {[%clk 0:01:06]} 38. Bd4 {[%clk 0:00:14]}  Bb6 {[%clk 0:00:43]} 39. Bc3 {[%clk 0:00:08]}  Ne4 {[%clk 0:00:42]} 40. Be1 {[%clk 0:00:06]}  Nf2+ {[%clk 0:00:42]} 41. Bxf2 {[%clk 0:00:06]}  Bxf2 {[%clk 0:00:43]} 42. Rxc7 {[%clk 0:00:07]}  Re7 {[%clk 0:00:40]} 43. Rc2 {[%clk 0:00:05]}  Bc5 {[%clk 0:00:39]} 44. Kg2 {[%clk 0:00:05]}  Bf5 {[%clk 0:00:38]} 45. Rd2 {[%clk 0:00:05]}  Re3 {[%clk 0:00:38]} 46. Bc4 {[%clk 0:00:02]}  Be4 {[%clk 0:00:37]} 47. Bd5 {[%clk 0:00:02]}  Bf5 {[%clk 0:00:28]} 48. Bc6 {[%clk 0:00:03]}  Ke7 {[%clk 0:00:27]} 49. Bd5 {[%clk 0:00:03]}  Kf6 {[%clk 0:00:26]} 50. Bc6 {[%clk 0:00:03]}  h5 {[%clk 0:00:26]} 51. Rf2 {[%clk 0:00:03]}  Ke7 {[%clk 0:00:24]} 52. Ng5 {[%clk 0:00:04]}  Bg6 {[%clk 0:00:23]} 53. Rf1 {[%clk 0:00:04]}  Re5 {[%clk 0:00:21]} 54. Nf3 {[%clk 0:00:04]}  Re2+ {[%clk 0:00:22]} 55. Kg3 {[%clk 0:00:04]}  Re3 {[%clk 0:00:17]} 56. Kf4 {[%clk 0:00:05]}  Rc3 {[%clk 0:00:17]} 57. Re1+ {[%clk 0:00:03]}  Kf6 {[%clk 0:00:17]} 58. Bd5 {[%clk 0:00:04]}  Ra3 {[%clk 0:00:14]} 59. Rf1 {[%clk 0:00:03]}  Ra4+ {[%clk 0:00:13]} 60. Kg3 {[%clk 0:00:04]}  Kg7 {[%clk 0:00:13]} 61. Nh4 {[%clk 0:00:03]}  Ra3+ {[%clk 0:00:12]} 62. Kg2 {[%clk 0:00:04]}  Rd3 {[%clk 0:00:10]} 63. Bc4 {[%clk 0:00:03]}  Rd2+ {[%clk 0:00:09]} 64. Kg3 {[%clk 0:00:03]}  Bd4 {[%clk 0:00:06]} 65. Nxg6 {[%clk 0:00:03]}  fxg6 {[%clk 0:00:07]} 66. Rf7+ {[%clk 0:00:04]}  Kh6 {[%clk 0:00:07]} 67. Rd7 {[%clk 0:00:04]}  Be5+ {[%clk 0:00:07]} 68. Kf3 {[%clk 0:00:05]}  Rd4 {[%clk 0:00:07]} 69. Be6 {[%clk 0:00:05]}  Kg5 {[%clk 0:00:08]} 70. Rd8 {[%clk 0:00:05]}  Rf4+ {[%clk 0:00:08]} 71. Ke3 {[%clk 0:00:05]}  Rf6 {[%clk 0:00:08]} 72. Bc8 {[%clk 0:00:06]}  Kh4 {[%clk 0:00:09]} 73. Rg8 {[%clk 0:00:06]}  g5 {[%clk 0:00:09]} 74. Rh8 {[%clk 0:00:05]}  Rf1 {[%clk 0:00:04]} 75. Rh7 {[%clk 0:00:06]}  Rf4 {[%clk 0:00:03]} 76. Bd7 {[%clk 0:00:06]}  Bd4+ {[%clk 0:00:03]} 77. Kd3 {[%clk 0:00:05]}  Bc5 {[%clk 0:00:03]} 78. Be6 {[%clk 0:00:06]}  Rf3+ {[%clk 0:00:03]} 79. Kc4 {[%clk 0:00:05]}  Re3 {[%clk 0:00:02]} 80. Bf5 {[%clk 0:00:04]}  Re5 {[%clk 0:00:02]} 81. Bd7 {[%clk 0:00:04]}  Re4+ {[%clk 0:00:02]} 82. Kd5 {[%clk 0:00:04]}  Rf4 {[%clk 0:00:03]} 83. Be6 {[%clk 0:00:04]}  Rf6 {[%clk 0:00:04]} 84. Bg4 {[%clk 0:00:04]}  Kg3 {[%clk 0:00:04]} 85. Rxh5 {[%clk 0:00:05]}  Kf4 {[%clk 0:00:04]} 86. Rh7 {[%clk 0:00:05]}  Rf8 {[%clk 0:00:05]} 87. Re7 {[%clk 0:00:05]}  Rb8 {[%clk 0:00:05]} 88. Rf7+ {[%clk 0:00:06]}  Kg3 {[%clk 0:00:05]} 89. Rg7 {[%clk 0:00:06]}  Kf4 {[%clk 0:00:04]} 90. Rf7+ {[%clk 0:00:07]}  Kg3 {[%clk 0:00:05]} 91. Rg7 {[%clk 0:00:07]}  Kf4 {[%clk 0:00:02]} 92. Rf7+ {[%clk 0:00:08]} 1/2-1/2


[Site "https://www.chess.com"]

[Event "Titled Tuesday Blitz June 14 Early 2022"]
[White "Avinash, Ramesh"]
[Black "Kosakowski, Jakub"]
[WhiteFideId "45018340"]
[BlackFideId "1185080"]
[WhiteElo "1875"]
[BlackElo "2476"]
[Result "0-1"]
[Round "09"]
[TimeControl "180+1"]
[Date "2022.06.14"]
[WhiteClock "0:00:21"]
[BlackClock "0:00:19"]

1. e4 {[%clk 0:03:00]}  e5 {[%clk 0:02:31]} 2. Nc3 {[%clk 0:02:58]}  Nf6 {[%clk 0:02:31]} 3. d4 {[%clk 0:02:58]}  exd4 {[%clk 0:02:30]} 4. Qxd4 {[%clk 0:02:59]}  Nc6 {[%clk 0:02:30]} 5. Qd3 {[%clk 0:02:59]}  Bb4 {[%clk 0:02:30]} 6. Bd2 {[%clk 0:02:59]}  O-O {[%clk 0:02:30]} 7. O-O-O {[%clk 0:02:59]}  Re8 {[%clk 0:02:27]} 8. f4 {[%clk 0:02:59]}  Bxc3 {[%clk 0:02:18]} 9. Bxc3 {[%clk 0:02:56]}  Nxe4 {[%clk 0:02:18]} 10. Nh3 {[%clk 0:02:44]}  d5 {[%clk 0:02:13]} 11. Qxd5 {[%clk 0:02:30]}  Qxd5 {[%clk 0:01:43]} 12. Rxd5 {[%clk 0:02:29]}  Nxc3 {[%clk 0:01:29]} 13. bxc3 {[%clk 0:02:28]}  Bxh3 {[%clk 0:01:24]} 14. gxh3 {[%clk 0:02:28]}  Re1+ {[%clk 0:01:25]} 15. Rd1 {[%clk 0:02:28]}  Rxd1+ {[%clk 0:01:24]} 16. Kxd1 {[%clk 0:02:28]}  Ne7 {[%clk 0:01:24]} 17. Bg2 {[%clk 0:02:24]}  c6 {[%clk 0:01:23]} 18. Re1 {[%clk 0:02:23]}  Kf8 {[%clk 0:01:21]} 19. Be4 {[%clk 0:02:15]}  Rd8+ {[%clk 0:01:17]} 20. Kc1 {[%clk 0:02:15]}  Nd5 {[%clk 0:01:14]} 21. Bxd5 {[%clk 0:02:13]}  Rxd5 {[%clk 0:01:13]} 22. Re4 {[%clk 0:02:11]}  Rh5 {[%clk 0:01:04]} 23. Re3 {[%clk 0:02:10]}  Rh4 {[%clk 0:00:55]} 24. Rf3 {[%clk 0:02:10]}  Ke7 {[%clk 0:00:55]} 25. Kd2 {[%clk 0:02:10]}  Rh6 {[%clk 0:00:55]} 26. Ke3 {[%clk 0:02:08]}  Re6+ {[%clk 0:00:54]} 27. Kd3 {[%clk 0:02:09]}  Rd6+ {[%clk 0:00:54]} 28. Ke2 {[%clk 0:02:05]}  Kf6 {[%clk 0:00:54]} 29. Rg3 {[%clk 0:02:02]}  g6 {[%clk 0:00:53]} 30. Rg5 {[%clk 0:02:00]}  Rd5 {[%clk 0:00:51]} 31. Rxd5 {[%clk 0:01:53]}  cxd5 {[%clk 0:00:52]} 32. Ke3 {[%clk 0:01:36]}  Kf5 {[%clk 0:00:49]} 33. Kf3 {[%clk 0:01:34]}  g5 {[%clk 0:00:27]} 34. fxg5 {[%clk 0:01:12]}  Kxg5 {[%clk 0:00:28]} 35. Kg3 {[%clk 0:00:55]}  Kf5 {[%clk 0:00:26]} 36. Kf3 {[%clk 0:00:55]}  Ke5 {[%clk 0:00:24]} 37. Ke3 {[%clk 0:00:34]}  f5 {[%clk 0:00:23]} 38. h4 {[%clk 0:00:34]}  f4+ {[%clk 0:00:21]} 39. Kd3 {[%clk 0:00:34]}  b5 {[%clk 0:00:19]} 40. h3 {[%clk 0:00:33]}  h5 {[%clk 0:00:18]} 41. a3 {[%clk 0:00:30]}  a6 {[%clk 0:00:19]} 42. Kd2 {[%clk 0:00:26]}  Ke4 {[%clk 0:00:19]} 43. Ke2 {[%clk 0:00:27]}  f3+ {[%clk 0:00:20]} 44. Kf2 {[%clk 0:00:27]}  Kf4 {[%clk 0:00:20]} 45. c4 {[%clk 0:00:25]}  dxc4 {[%clk 0:00:20]} 46. c3 {[%clk 0:00:25]}  Ke4 {[%clk 0:00:20]} 47. a4 {[%clk 0:00:18]}  bxa4 {[%clk 0:00:19]} 48. Kg3 {[%clk 0:00:19]}  Ke3 {[%clk 0:00:18]} 49. Kh2 {[%clk 0:00:19]}  Kf2 {[%clk 0:00:17]} 50. Kh1 {[%clk 0:00:19]}  a3 {[%clk 0:00:18]} 51. Kh2 {[%clk 0:00:20]}  a2 {[%clk 0:00:18]} 52. Kh1 {[%clk 0:00:21]}  a1=Q+ {[%clk 0:00:19]} 0-1


[Site "https://www.chess.com"]

[Event "Titled Tuesday Blitz June 14 Early 2022"]
[White "Bharath Subramaniyam H"]
[Black "Taspinar, Yanki"]
[WhiteFideId "46634827"]
[BlackFideId "34561188"]
[WhiteElo "2242"]
[BlackElo "1518"]
[Result "1-0"]
[Round "09"]
[TimeControl "180+1"]
[Date "2022.06.14"]
[WhiteClock "0:00:22"]
[BlackClock "0:00:17"]

1. d4 {[%clk 0:02:45]}  d5 {[%clk 0:02:59]} 2. Nf3 {[%clk 0:02:43]}  e6 {[%clk 0:02:59]} 3. Bf4 {[%clk 0:02:40]}  Nf6 {[%clk 0:02:58]} 4. c3 {[%clk 0:02:38]}  c5 {[%clk 0:02:58]} 5. e3 {[%clk 0:02:38]}  Bd6 {[%clk 0:02:58]} 6. Nbd2 {[%clk 0:02:38]}  O-O {[%clk 0:02:58]} 7. Bg3 {[%clk 0:02:36]}  Nc6 {[%clk 0:02:52]} 8. Bd3 {[%clk 0:02:36]}  b6 {[%clk 0:02:51]} 9. e4 {[%clk 0:02:31]}  Be7 {[%clk 0:02:51]} 10. e5 {[%clk 0:02:30]}  Nh5 {[%clk 0:02:51]} 11. Ng5 {[%clk 0:02:25]}  Bxg5 {[%clk 0:02:42]} 12. Qxh5 {[%clk 0:02:24]}  g6 {[%clk 0:02:42]} 13. Qe2 {[%clk 0:02:20]}  cxd4 {[%clk 0:02:42]} 14. h4 {[%clk 0:02:20]}  Bxd2+ {[%clk 0:02:21]} 15. Qxd2 {[%clk 0:02:21]}  dxc3 {[%clk 0:02:21]} 16. bxc3 {[%clk 0:02:15]}  f6 {[%clk 0:02:21]} 17. h5 {[%clk 0:02:00]}  g5 {[%clk 0:02:16]} 18. exf6 {[%clk 0:01:58]}  Qxf6 {[%clk 0:02:16]} 19. O-O {[%clk 0:01:57]}  Ne5 {[%clk 0:01:55]} 20. Rfe1 {[%clk 0:01:53]}  Nf7 {[%clk 0:01:45]} 21. Bb1 {[%clk 0:01:31]}  Bd7 {[%clk 0:01:37]} 22. c4 {[%clk 0:01:26]}  d4 {[%clk 0:00:31]} 23. Qd3 {[%clk 0:01:25]}  Qg7 {[%clk 0:00:26]} 24. h6 {[%clk 0:01:25]}  Qxh6 {[%clk 0:00:20]} 25. Qxd4 {[%clk 0:01:23]}  Bc6 {[%clk 0:00:14]} 26. Qg4 {[%clk 0:01:15]}  Rae8 {[%clk 0:00:11]} 27. Bc2 {[%clk 0:01:15]}  Qg7 {[%clk 0:00:09]} 28. Rad1 {[%clk 0:01:09]}  Nh6 {[%clk 0:00:09]} 29. Qh5 {[%clk 0:01:06]}  Nf5 {[%clk 0:00:09]} 30. Be5 {[%clk 0:01:05]}  Qg6 {[%clk 0:00:09]} 31. Qh2 {[%clk 0:00:54]}  Qh6 {[%clk 0:00:07]} 32. Qxh6 {[%clk 0:00:47]}  Nxh6 {[%clk 0:00:08]} 33. Rd6 {[%clk 0:00:41]}  Ba8 {[%clk 0:00:08]} 34. Ba4 {[%clk 0:00:37]}  Nf7 {[%clk 0:00:05]} 35. Bxe8 {[%clk 0:00:20]}  Nxd6 {[%clk 0:00:05]} 36. Bd7 {[%clk 0:00:21]}  Nf7 {[%clk 0:00:06]} 37. Bf6 {[%clk 0:00:21]}  Re8 {[%clk 0:00:06]} 38. Bxe8 {[%clk 0:00:20]}  h6 {[%clk 0:00:06]} 39. Rxe6 {[%clk 0:00:19]}  h5 {[%clk 0:00:03]} 40. Re7 {[%clk 0:00:19]}  Nh6 {[%clk 0:00:02]} 41. Bg6 {[%clk 0:00:17]}  Kf8 {[%clk 0:00:03]} 42. Rh7 {[%clk 0:00:16]}  Ng8 {[%clk 0:00:02]} 43. Bxg5 {[%clk 0:00:15]}  Bc6 {[%clk 0:00:01]} 44. Rxa7 {[%clk 0:00:15]}  Be8 {[%clk 0:00:02]} 45. Ra8 {[%clk 0:00:15]}  Kg7 {[%clk 0:00:02]} 46. Bxe8 {[%clk 0:00:15]}  h4 {[%clk 0:00:03]} 47. Bxh4 {[%clk 0:00:15]}  Nh6 {[%clk 0:00:04]} 48. Bg5 {[%clk 0:00:15]}  Nf5 {[%clk 0:00:04]} 49. Bd7 {[%clk 0:00:15]}  Ne7 {[%clk 0:00:05]} 50. Bxe7 {[%clk 0:00:15]}  Kf7 {[%clk 0:00:06]} 51. Bd8 {[%clk 0:00:16]}  b5 {[%clk 0:00:07]} 52. Bb6 {[%clk 0:00:17]}  bxc4 {[%clk 0:00:08]} 53. Bb5 {[%clk 0:00:17]}  c3 {[%clk 0:00:09]} 54. Be3 {[%clk 0:00:18]}  Kf6 {[%clk 0:00:10]} 55. Bc1 {[%clk 0:00:19]}  c2 {[%clk 0:00:10]} 56. Bd3 {[%clk 0:00:19]}  Ke6 {[%clk 0:00:11]} 57. Bxc2 {[%clk 0:00:20]}  Kd5 {[%clk 0:00:12]} 58. Rd8+ {[%clk 0:00:20]}  Kc4 {[%clk 0:00:13]} 59. g4 {[%clk 0:00:20]}  Kb4 {[%clk 0:00:14]} 60. g5 {[%clk 0:00:21]}  Kc3 {[%clk 0:00:15]} 61. g6 {[%clk 0:00:22]}  Kb4 {[%clk 0:00:15]} 62. g7 {[%clk 0:00:22]}  Kc3 {[%clk 0:00:16]} 63. g8=Q {[%clk 0:00:22]}  Kxc2 {[%clk 0:00:17]} 64. Qc4+ {[%clk 0:00:22]}  Kb1 {[%clk 0:00:17]} 65. Qb3+ {[%clk 0:00:23]}  Ka1 {[%clk 0:00:17]} 66. Qb2# {[%clk 0:00:22]} 1-0


[Site "https://www.chess.com"]

[Event "Titled Tuesday Blitz June 14 Early 2022"]
[White "Bluebaum, Matthias"]
[Black "Csonka, Balazs"]
[WhiteFideId "24651516"]
[BlackFideId "742910"]
[WhiteElo "2556"]
[BlackElo "2404"]
[Result "1-0"]
[Round "09"]
[TimeControl "180+1"]
[Date "2022.06.14"]
[WhiteClock "0:01:32"]
[BlackClock "0:00:02"]

1. d4 {[%clk 0:03:00]}  e6 {[%clk 0:02:58]} 2. c4 {[%clk 0:03:01]}  d5 {[%clk 0:02:56]} 3. Nc3 {[%clk 0:03:01]}  Nf6 {[%clk 0:02:55]} 4. cxd5 {[%clk 0:03:02]}  exd5 {[%clk 0:02:55]} 5. Bg5 {[%clk 0:03:02]}  Bb4 {[%clk 0:02:51]} 6. e3 {[%clk 0:03:01]}  Nbd7 {[%clk 0:02:50]} 7. Bd3 {[%clk 0:02:59]}  h6 {[%clk 0:02:49]} 8. Bh4 {[%clk 0:02:59]}  c5 {[%clk 0:02:29]} 9. Ne2 {[%clk 0:02:57]}  c4 {[%clk 0:02:13]} 10. Bc2 {[%clk 0:02:53]}  O-O {[%clk 0:02:13]} 11. O-O {[%clk 0:02:52]}  Be7 {[%clk 0:02:13]} 12. b3 {[%clk 0:02:52]}  b6 {[%clk 0:01:56]} 13. bxc4 {[%clk 0:02:48]}  dxc4 {[%clk 0:01:57]} 14. e4 {[%clk 0:02:46]}  Bb7 {[%clk 0:01:45]} 15. Bg3 {[%clk 0:02:37]}  Bb4 {[%clk 0:01:32]} 16. a3 {[%clk 0:02:27]}  Bxc3 {[%clk 0:01:30]} 17. Nxc3 {[%clk 0:02:28]}  Re8 {[%clk 0:01:29]} 18. Re1 {[%clk 0:02:27]}  a6 {[%clk 0:01:25]} 19. a4 {[%clk 0:02:26]}  b5 {[%clk 0:01:09]} 20. axb5 {[%clk 0:02:13]}  axb5 {[%clk 0:01:10]} 21. Rxa8 {[%clk 0:02:12]}  Qxa8 {[%clk 0:00:44]} 22. d5 {[%clk 0:02:06]}  b4 {[%clk 0:00:40]} 23. Nb5 {[%clk 0:02:07]}  b3 {[%clk 0:00:38]} 24. Bb1 {[%clk 0:02:07]}  Qa5 {[%clk 0:00:20]} 25. Nd6 {[%clk 0:02:07]}  c3 {[%clk 0:00:17]} 26. Qxb3 {[%clk 0:01:47]}  c2 {[%clk 0:00:13]} 27. Rc1 {[%clk 0:01:48]}  Bxd5 {[%clk 0:00:07]} 28. Qxc2 {[%clk 0:01:32]}  Bxe4 {[%clk 0:00:07]} 29. Qd1 {[%clk 0:01:33]}  Bxb1 {[%clk 0:00:03]} 30. Nxe8 {[%clk 0:01:33]}  Nxe8 {[%clk 0:00:03]} 31. Qxd7 {[%clk 0:01:30]}  Nf6 {[%clk 0:00:02]} 32. Qc8+ {[%clk 0:01:31]}  Kh7 {[%clk 0:00:02]} 33. Rxb1 {[%clk 0:01:32]} 1-0


[Site "https://www.chess.com"]

[Event "Titled Tuesday Blitz June 14 Early 2022"]
[White "Dev, Shah"]
[Black "Lagno, Kateryna"]
[WhiteFideId "35019058"]
[BlackFideId "14109336"]
[WhiteElo "2048"]
[BlackElo "2522"]
[Result "0-1"]
[Round "09"]
[TimeControl "180+1"]
[Date "2022.06.14"]
[WhiteClock "0:00:03"]
[BlackClock "0:01:14"]

1. d4 {[%clk 0:03:00]}  Nf6 {[%clk 0:02:57]} 2. c4 {[%clk 0:03:00]}  g6 {[%clk 0:02:57]} 3. Nc3 {[%clk 0:02:59]}  d5 {[%clk 0:02:57]} 4. cxd5 {[%clk 0:02:59]}  Nxd5 {[%clk 0:02:58]} 5. e4 {[%clk 0:03:00]}  Nxc3 {[%clk 0:02:58]} 6. bxc3 {[%clk 0:03:01]}  Bg7 {[%clk 0:02:59]} 7. Bc4 {[%clk 0:03:01]}  c5 {[%clk 0:02:59]} 8. Ne2 {[%clk 0:03:02]}  Nc6 {[%clk 0:03:00]} 9. Be3 {[%clk 0:03:01]}  O-O {[%clk 0:03:00]} 10. O-O {[%clk 0:03:02]}  Bg4 {[%clk 0:02:57]} 11. f3 {[%clk 0:03:00]}  Bd7 {[%clk 0:02:57]} 12. Rb1 {[%clk 0:02:58]}  Qc7 {[%clk 0:02:49]} 13. dxc5 {[%clk 0:02:40]}  Rfd8 {[%clk 0:02:38]} 14. Nd4 {[%clk 0:02:32]}  Na5 {[%clk 0:02:34]} 15. Bd3 {[%clk 0:01:51]}  b6 {[%clk 0:02:17]} 16. cxb6 {[%clk 0:01:45]}  axb6 {[%clk 0:02:18]} 17. Qe2 {[%clk 0:01:33]}  Qxc3 {[%clk 0:02:12]} 18. Rfc1 {[%clk 0:01:29]}  Qa3 {[%clk 0:02:11]} 19. Nc2 {[%clk 0:01:19]}  Qxa2 {[%clk 0:02:03]} 20. Bxb6 {[%clk 0:01:18]}  Rdb8 {[%clk 0:01:57]} 21. Ra1 {[%clk 0:00:56]}  Bxa1 {[%clk 0:01:48]} 22. Rxa1 {[%clk 0:00:57]}  Qe6 {[%clk 0:01:31]} 23. Bd4 {[%clk 0:00:47]}  Nb3 {[%clk 0:01:28]} 24. Rxa8 {[%clk 0:00:45]}  Rxa8 {[%clk 0:01:29]} 25. Bb2 {[%clk 0:00:45]}  Qb6+ {[%clk 0:01:28]} 26. Ne3 {[%clk 0:00:31]}  Ra2 {[%clk 0:01:22]} 27. Kh1 {[%clk 0:00:12]}  Rxb2 {[%clk 0:01:17]} 28. Qxb2 {[%clk 0:00:10]}  Qxe3 {[%clk 0:01:18]} 29. Qc3 {[%clk 0:00:03]}  Nc5 {[%clk 0:01:14]} 0-1


[Site "https://www.chess.com"]

[Event "Titled Tuesday Blitz June 14 Early 2022"]
[White "Dubov, Daniil"]
[Black "Durarbayli, Vasif"]
[WhiteFideId "24126055"]
[BlackFideId "13402935"]
[WhiteElo "2791"]
[BlackElo "2528"]
[Result "1-0"]
[Round "09"]
[TimeControl "180+1"]
[Date "2022.06.14"]
[WhiteClock "0:01:09"]
[BlackClock "0:00:31"]

1. d4 {[%clk 0:03:00]}  Nf6 {[%clk 0:03:00]} 2. c4 {[%clk 0:03:01]}  e6 {[%clk 0:03:00]} 3. Nf3 {[%clk 0:03:01]}  b6 {[%clk 0:03:00]} 4. g3 {[%clk 0:03:01]}  Bb7 {[%clk 0:03:01]} 5. Bg2 {[%clk 0:03:01]}  Be7 {[%clk 0:03:02]} 6. O-O {[%clk 0:03:01]}  O-O {[%clk 0:03:02]} 7. d5 {[%clk 0:03:02]}  exd5 {[%clk 0:03:02]} 8. Nd4 {[%clk 0:03:02]}  c6 {[%clk 0:02:59]} 9. cxd5 {[%clk 0:03:01]}  Nxd5 {[%clk 0:03:00]} 10. e4 {[%clk 0:03:01]}  Nc7 {[%clk 0:03:00]} 11. Nc3 {[%clk 0:03:01]}  Bf6 {[%clk 0:02:52]} 12. Bf4 {[%clk 0:02:53]}  Ne6 {[%clk 0:02:31]} 13. e5 {[%clk 0:02:50]}  Be7 {[%clk 0:02:23]} 14. Nf5 {[%clk 0:02:46]}  f6 {[%clk 0:02:13]} 15. Nxe7+ {[%clk 0:02:16]}  Qxe7 {[%clk 0:02:14]} 16. exf6 {[%clk 0:02:16]}  Qxf6 {[%clk 0:02:11]} 17. Bd6 {[%clk 0:02:09]}  Re8 {[%clk 0:02:05]} 18. Ne4 {[%clk 0:01:42]}  Qxb2 {[%clk 0:02:04]} 19. Qh5 {[%clk 0:01:40]}  Na6 {[%clk 0:01:54]} 20. Be5 {[%clk 0:01:38]}  Qa3 {[%clk 0:01:46]} 21. Nd6 {[%clk 0:01:34]}  g6 {[%clk 0:01:18]} 22. Qh4 {[%clk 0:01:27]}  Nf8 {[%clk 0:00:54]} 23. Nxe8 {[%clk 0:01:11]}  Rxe8 {[%clk 0:00:55]} 24. Qf6 {[%clk 0:01:10]}  Re6 {[%clk 0:00:31]} 25. Qg7# {[%clk 0:01:09]} 1-0


[Site "https://www.chess.com"]

[Event "Titled Tuesday Blitz June 14 Early 2022"]
[White "Hakobyan, Aram"]
[Black "Stribuk, Artiom"]
[WhiteFideId "13306677"]
[BlackFideId "13515659"]
[WhiteElo "2557"]
[BlackElo "2259"]
[Result "1-0"]
[Round "09"]
[TimeControl "180+1"]
[Date "2022.06.14"]
[WhiteClock "0:00:36"]
[BlackClock "0:00:03"]

1. e4 {[%clk 0:03:00]}  c5 {[%clk 0:02:59]} 2. Nf3 {[%clk 0:02:59]}  Nc6 {[%clk 0:02:58]} 3. Bb5 {[%clk 0:02:56]}  e6 {[%clk 0:02:58]} 4. Bxc6 {[%clk 0:02:54]}  bxc6 {[%clk 0:02:59]} 5. d3 {[%clk 0:02:55]}  Ne7 {[%clk 0:02:59]} 6. Nbd2 {[%clk 0:02:55]}  Ng6 {[%clk 0:02:55]} 7. h4 {[%clk 0:02:55]}  h5 {[%clk 0:02:55]} 8. e5 {[%clk 0:02:55]}  d5 {[%clk 0:02:26]} 9. exd6 {[%clk 0:02:40]}  Bxd6 {[%clk 0:02:24]} 10. Nc4 {[%clk 0:02:35]}  Be7 {[%clk 0:02:22]} 11. Be3 {[%clk 0:02:28]}  f6 {[%clk 0:02:20]} 12. Nfd2 {[%clk 0:02:25]}  e5 {[%clk 0:01:45]} 13. Qf3 {[%clk 0:02:24]}  Qd5 {[%clk 0:01:40]} 14. Qg3 {[%clk 0:02:12]}  Bf5 {[%clk 0:01:25]} 15. O-O-O {[%clk 0:02:02]}  Kf7 {[%clk 0:01:10]} 16. Nb1 {[%clk 0:01:57]}  Nf8 {[%clk 0:01:08]} 17. f4 {[%clk 0:01:53]}  exf4 {[%clk 0:01:06]} 18. Bxf4 {[%clk 0:01:54]}  Ne6 {[%clk 0:01:05]} 19. Nc3 {[%clk 0:01:53]}  Qd7 {[%clk 0:00:44]} 20. Bd6 {[%clk 0:01:46]}  Rad8 {[%clk 0:00:27]} 21. Bxe7 {[%clk 0:01:43]}  Qxe7 {[%clk 0:00:28]} 22. Rhf1 {[%clk 0:01:42]}  Nd4 {[%clk 0:00:22]} 23. Rde1 {[%clk 0:01:40]}  Qd7 {[%clk 0:00:21]} 24. Ne4 {[%clk 0:01:37]}  Rhf8 {[%clk 0:00:08]} 25. Nxc5 {[%clk 0:01:29]}  Qd5 {[%clk 0:00:08]} 26. Nb7 {[%clk 0:01:20]}  Rb8 {[%clk 0:00:03]} 27. Nbd6+ {[%clk 0:01:01]}  Kg8 {[%clk 0:00:04]} 28. Re7 {[%clk 0:01:01]}  Bg4 {[%clk 0:00:04]} 29. Rfe1 {[%clk 0:00:47]}  Qc5 {[%clk 0:00:03]} 30. Rc7 {[%clk 0:00:40]}  Nb5 {[%clk 0:00:01]} 31. Nxb5 {[%clk 0:00:37]}  Qxb5 {[%clk 0:00:01]} 32. Ree7 {[%clk 0:00:35]}  Rfe8 {[%clk 0:00:01]} 33. Rxg7+ {[%clk 0:00:35]}  Kh8 {[%clk 0:00:02]} 34. Rh7+ {[%clk 0:00:35]}  Kg8 {[%clk 0:00:02]} 35. Rcg7+ {[%clk 0:00:35]}  Kf8 {[%clk 0:00:03]} 36. Qd6+ {[%clk 0:00:36]} 1-0


[Site "https://www.chess.com"]